{"text_format":"1","workbook":"xlsx","n_sheets":2,"sheets":["Sheet1","Sheet2"],"not_rendered":{"charts":0,"images":0,"macros":0,"external_links":0,"defined_names":1,"comments":0,"pivot_tables":0},"unopened":[],"bounds":{"document_bytes":16777216,"sheet_cells":100000,"rows_first":2000,"rows_last":500,"rows_between":2000,"halvings":0,"cell_chars":16384,"cell_head_chars":4096},"cells_cut":0,"cells_raw":0,"read":"whole","date_system":"1900"}

{"sheet":"Sheet1","index":0,"n_rows":54,"n_cols":5,"rows_kept":54,"cut":false,"hidden":false,"merged":[[0,0,0,3],[1,0,1,3]]}
["Family Unification Program and Family Self Sufficiency Demonstration"]
["*The PHAs listed below have been approved to participate in the Demonstration. However, only those PHAs with an updated FSS Action Plan addressing the Demonstration, that has been approved by HUD, may proceed towards implementation.  Periodic updates will be made to the FSS Action Plan approval data as Plans are approved."]
["State","PHA Number","PHA Name","FSS Action Plan Approved"]
["AZ","AZ004","Housing And Community Development Tucson",{"$f":"IF(E4=1,\"yes\",\"no\")","v":"yes"},{"$f":"COUNTIF(Sheet2!A$2:A$60,B4)","v":1}]
["AZ","AZ001","City of Phoenix Housing Department",{"$f":"IF(E5=1,\"yes\",\"no\")","v":"yes"},{"$f":"COUNTIF(Sheet2!A$2:A$60,B5)","v":1}]
["CA","CA014","Housing Authority of the County of San Mateo","yes",{"$f":"COUNTIF(Sheet2!A$2:A$60,B6)","v":1}]
["CA","CA072","Housing Authority of the County of Santa Cruz ","yes",{"$f":"COUNTIF(Sheet2!A$2:A$60,B7)","v":1}]
["CA","CA003","Oakland Housing Authority","yes",{"$f":"COUNTIF(Sheet2!A$2:A$60,B8)","v":1}]
["CA","CA094","Orange County Housing Authority","yes",{"$f":"COUNTIF(Sheet2!A$2:A$60,B9)","v":1}]
["CA","CA076","Housing Authority of the City of Santa Barbara ","yes",{"$f":"COUNTIF(Sheet2!A$2:A$60,B10)","v":1}]
["CA","CA125","Vacaville Housing Authority","yes",{"$f":"COUNTIF(Sheet2!A$2:A$60,B11)","v":1}]
["CA","CA035","Housing Authority of  the City of San Buenaventura","yes",{"$f":"COUNTIF(Sheet2!A$2:A$60,B12)","v":1}]
["CA","CA026","Housing Authority of the County of Stanislaus","yes",{"$f":"COUNTIF(Sheet2!A$2:A$60,B13)","v":1}]
["CA","CA027","Housing Authority of the County of Riverside","yes"]
["CA","CA028","Fresno County Housing Authority","yes",{"$f":"COUNTIF(Sheet2!A$2:A$60,B15)","v":1}]
["CO","CO041","Fort Collins Housing Authority","yes",{"$f":"COUNTIF(Sheet2!A$2:A$60,B16)","v":1}]
["CO","CO911","Colorado Division of Housing","yes",{"$f":"COUNTIF(Sheet2!A$2:A$60,B17)","v":1}]
["DE","DE901","Delaware State Housing Authority","yes",{"$f":"COUNTIF(Sheet2!A$2:A$60,B18)","v":1}]
["FL","FL003","Tampa Housing Housing Authority","yes",{"$f":"COUNTIF(Sheet2!A$2:A$60,B19)","v":1}]
["FL","FL079","Broward County Housing Authority","yes",{"$f":"COUNTIF(Sheet2!A$2:A$60,B20)","v":1}]
["HI","HI003","City and County of Honolulu","yes",{"$f":"COUNTIF(Sheet2!A$2:A$60,B21)","v":1}]
["IL","IL056","Lake County Housing Authority","yes",{"$f":"COUNTIF(Sheet2!A$2:A$60,B22)","v":1}]
["IL","IL101","Dupage Housing Authority","yes",{"$f":"COUNTIF(Sheet2!A$2:A$60,B23)","v":1}]
["IL","IL025","Housing Authority of Cook County","yes",{"$f":"COUNTIF(Sheet2!A$2:A$60,B24)","v":1}]
["IL","IL083","Winnebago County Housing Authority","yes",{"$f":"COUNTIF(Sheet2!A$2:A$60,B25)","v":1}]
["IL","IL002","Chicago Housing Authority","yes",{"$f":"COUNTIF(Sheet2!A$2:A$60,B26)","v":1}]
["IN","IN012","New Albany Housing Authority","yes",{"$f":"COUNTIF(Sheet2!A$2:A$60,B27)","v":1}]
["MD","MD002","Housing Authority of Baltimore City","yes",{"$f":"COUNTIF(Sheet2!A$2:A$60,B28)","v":1}]
["MD","MD015","Prince Georges County Housing Authority","yes",{"$f":"COUNTIF(Sheet2!A$2:A$60,B29)","v":1}]
["MD","MD032","Carroll County Housing Authority","yes",{"$f":"COUNTIF(Sheet2!A$2:A$60,B30)","v":1}]
["ME","ME901","Maine State Housing Authority","yes",{"$f":"COUNTIF(Sheet2!A$2:A$60,B31)","v":1}]
["MI","MI001","Detroit Housing Commission","yes",{"$f":"COUNTIF(Sheet2!A$2:A$60,B32)","v":1}]
["MN","MN002","Minneapolis Housing Authority","yes",{"$f":"COUNTIF(Sheet2!A$2:A$60,B33)","v":1}]
["MO","MO004","Housing Authority of St. Louis County","yes",{"$f":"COUNTIF(Sheet2!A$2:A$60,B34)","v":1}]
["NC","NC159","Western Piedmont Council of Governments Regional Housing Authority","yes",{"$f":"COUNTIF(Sheet2!A$2:A$60,B35)","v":1}]
["NC","NC012","Housing Authority of Winston-Salem","yes",{"$f":"COUNTIF(Sheet2!A$2:A$60,B36)","v":1}]
["NJ","NJ054","Lakewood Housing Authority","yes",{"$f":"COUNTIF(Sheet2!A$2:A$60,B37)","v":1}]
["NY","NY005","New York City Housing Authority","yes",{"$f":"COUNTIF(Sheet2!A$2:A$60,B38)","v":1}]
["NY","NY041","Rochester Housing Authority","yes",{"$f":"COUNTIF(Sheet2!A$2:A$60,B39)","v":1}]
["NY","NY091","Town of Amherst/Belmont Housing Resources for WNY","yes"]
["OH","OH059","Pickaway Metropolitan Housing Authority","yes",{"$f":"COUNTIF(Sheet2!A$2:A$60,B41)","v":1}]
["OK","OK002","Oklahoma City Housing Authority",{"$f":"IF(E42=1,\"yes\",\"no\")","v":"yes"},{"$f":"COUNTIF(Sheet2!A$2:A$60,B42)","v":1}]
["OR","OR002","(Home Forward) Housing Authority of Portland","yes",{"$f":"COUNTIF(Sheet2!A$2:A$60,B43)","v":1}]
["OR","OR011","Housing Authority of the City of Salem ","yes",{"$f":"COUNTIF(Sheet2!A$2:A$60,B44)","v":1}]
["TX","TX023","Housing Authority of the City of Beaumont ","yes",{"$f":"COUNTIF(Sheet2!A$2:A$60,B45)","v":1}]
["TX","TX431","Tarrant County Housing Assistance Office ","yes",{"$f":"COUNTIF(Sheet2!A$2:A$60,B46)","v":1}]
["TX","TX004","Fort Worth Housing Authority","yes",{"$f":"COUNTIF(Sheet2!A$2:A$60,B47)","v":1}]
["TX","TX007","Housing Authority of the City of Brownsville ","yes",{"$f":"COUNTIF(Sheet2!A$2:A$60,B48)","v":1}]
["UT","UT003","Housing Authority of the County of Salt Lake","yes",{"$f":"COUNTIF(Sheet2!A$2:A$60,B49)","v":1}]
["UT","UT004","Housing Authority of Salt Lake City","yes",{"$f":"COUNTIF(Sheet2!A$2:A$60,B50)","v":1}]
["WA","WA008","Vancouver Housing Authority","yes",{"$f":"COUNTIF(Sheet2!A$2:A$60,B51)","v":1}]
["WA","WA001","Seattle Public Housing Authority","yes",{"$f":"COUNTIF(Sheet2!A$2:A$60,B52)","v":1}]
["WI","WI003","City of Madison Community Development Authority ","yes",{"$f":"COUNTIF(Sheet2!A$2:A$60,B53)","v":1}]
["WI","WI214","Dane County Housing Authority","yes",{"$f":"COUNTIF(Sheet2!A$2:A$60,B54)","v":1}]

{"sheet":"Sheet2","index":1,"n_rows":52,"n_cols":1,"rows_kept":52,"cut":false,"hidden":true,"merged":[]}
["PHA #"]
["CO041"]
["UT003"]
["WA008"]
["OR002"]
["OR011"]
["FL003"]
["CA014"]
["WI003"]
["WI214"]
["NC159"]
["OH059"]
["CA072"]
["CA003"]
["CA094"]
["TX023"]
["TX431"]
["CA076"]
["MD002"]
["CA125"]
["DE901"]
["MN002"]
["MI001"]
["CA027"]
["CA035"]
["HI003"]
["WA001"]
["NJ054"]
["NY005"]
["IL056"]
["CA026"]
["CA028"]
["NC012"]
["UT004"]
["IL101"]
["ME901"]
["TX004"]
["OK002"]
["MD015"]
["NY091"]
["MD032"]
["MO004"]
["NY041"]
["IL025"]
["CO911"]
["IL083"]
["IL002"]
["TX007"]
["FL079"]
["AZ004"]
["AZ001"]
["IN012"]